Cogmind - Beta 15 @@@ ROGUE MODE // 2025.09.24 @ 19:06:18 Player: shapeshifter Result: Destroyed by H-61 Shepherd with Heavy Assault Cannon Performance ------------- Evolutions (3) 1500 Regions Visited (8) 1600 Robots Destroyed (188) 940 Value Destroyed (4166) 4166 Prototype IDs (42) 840 Alien Tech Used (0) 0 Bonus (892) 892 TOTAL SCORE: 9938 Bonus ------- High Alert Combat Kills 252 Follower Combat Kills 340 Aligned with FarCom 300 Cogmind --------- Core Integrity 0/700 Matter 44/300 Energy 80/100 System Corruption 6% Temperature Cool (12) Movement Core (1350) Ox26 Location -7/Factory Parts ------- > --- POWER (1) -------- (None) > --- PROPULSION (4) --- (None) > --- UTILITY (5) ------ Huge Storage Unit Improved Signal Interpreter Improved Armor Integrity Analyzer Advanced Component Analysis Suite > --- WEAPON (3) ------- (None) > --- INVENTORY (25) --- Advanced Myomer Leg Advanced Myomer Leg Cooled Cesium-ion Thruster Cooled Cesium-ion Thruster High-capacity Storage Unit Superbattery (1500) High-capacity Matter Pod (200) High-capacity Matter Pod (200) Particle Accelerator Particle Accelerator Particle Accelerator Particle Accelerator Particle Accelerator Particle Accelerator Advanced Plasma Rifle Cooled Plasma Cannon Cooled Plasma Cannon Guided Plasma Cannon Mini Smartbomb Launcher Mini Smartbomb Launcher Mini Smartbomb Launcher Plasma Sword Plasma Sword Plasma Sword Peak State ------------ > --- POWER ------------ Light Neutrino Core > --- PROPULSION ------- Improved Heavy Treads Improved Heavy Treads > --- UTILITY ---------- Huge Storage Unit Improved Armor Integrity Analyzer Advanced Component Analysis Suite Improved System Guard Supersonic Drone Bay > --- WEAPON ----------- Enhanced Coil Gun Enhanced Coil Gun Enhanced Coil Gun > --- INVENTORY -------- Advanced Myomer Leg Advanced Myomer Leg Cooled Cesium-ion Thruster Cooled Cesium-ion Thruster High-capacity Storage Unit Superbattery High-capacity Matter Pod High-capacity Matter Pod Gravity Neutralizer Particle Accelerator Particle Accelerator Particle Accelerator Particle Accelerator Particle Accelerator Particle Accelerator Advanced Plasma Rifle Cooled Plasma Cannon Cooled Plasma Cannon Guided Plasma Cannon Mini Smartbomb Launcher Mini Smartbomb Launcher Plasma Sword Plasma Sword Plasma Sword [Rating: 102] Favorites ----------- Power Improved Ion Engine Engine Improved Ion Engine Power Core Light Neutrino Core Propulsion Light Treads Treads Light Treads Leg Improved Titanium Leg Wheel Wheel Hover Unit Improved Airjet Flight Unit Improved Flight Unit Utility Improved Heat Sink Device Improved Heat Sink Storage Huge Storage Unit Processor Improved Armor Integrity Analyzer Protection Medium Armor Plating Weapon Assault Rifle Energy Gun Improved Medium Laser Energy Cannon Guided Plasma Cannon Ballistic Gun Assault Rifle Ballistic Cannon Gauss Cannon Launcher Rocket Launcher Impact Weapon Heavy Hammer Build | -11 -10 -10 -9 -9 -9 -8 -8 -7 ------- Run | Yrd Mat Min Mat Min Exi Min Mat Fac Slots Evolved 6 | . . . 2 . . . 2 2 Power . | . . . . . . . . . Propulsion 2 | . . . . . . . 1 1 Utility 3 | . . . 2 . . . . 1 Weapon 1 | . . . . . . . 1 . Parts Attached 118 | 7 5 5 22 10 14 . 30 25 Power 11 | 1 . 1 2 . 2 . 2 3 Engine 8 | 1 . 1 2 . 2 . 2 . Core 3 | . . . . . . . . 3 Reactor . | . . . . . . . . . Propulsion 36 | 2 . 2 6 2 5 . 11 8 Treads 27 | 2 . . 5 2 5 . 10 3 Leg 5 | . . . . . . . 1 4 Wheel 2 | . . 2 . . . . . . Hover 1 | . . . . . . . . 1 Flight 1 | . . . 1 . . . . . Utility 31 | 2 1 1 9 3 3 . 5 7 Device 10 | 1 . . 4 1 . . 1 3 Storage 4 | 1 1 . 1 1 . . . . Processor 3 | . . . . . . . 1 2 Hackware . | . . . . . . . . . Protection 14 | . . 1 4 1 3 . 3 2 Artifact . | . . . . . . . . . Weapon 40 | 2 4 1 5 5 4 . 12 7 Energy Gun 6 | 1 . . . . . . 5 . Energy Cannon 2 | . . . . . 1 . 1 . Ballistic Gun 20 | 1 2 1 5 4 3 . 1 3 Ballistic Cannon 4 | . . . . . . . 3 1 Launcher 7 | . 1 . . 1 . . 2 3 Special Weapon . | . . . . . . . . . Impact Weapon 1 | . 1 . . . . . . . Slashing Weapon . | . . . . . . . . . Piercing Weapon . | . . . . . . . . . Special Melee Weapon . | . . . . . . . . . Unidentified Prototypes 10 | . . . 2 . . . 6 2 Parts Lost 48 | . . 3 7 1 10 1 11 15 Power 6 | . . 1 1 . 1 . 1 2 Propulsion 10 | . . 1 2 . 2 . 3 2 Utility 15 | . . 1 1 1 4 . 4 4 Weapon 17 | . . . 3 . 3 1 3 7 Highest Loss Streak 11 | . . 2 4 1 10 1 11 8 To Critical Strikes 4 | . . . . . 4 . . . Average Backups 20 | 4 10 13 16 20 20 23 23 24 Power . | . 1 . . . . 1 1 . Propulsion 4 | 3 2 1 1 5 5 4 4 3 Utility 7 | . 2 6 7 8 7 11 9 8 Weapon 7 | 1 3 3 6 7 7 6 8 11 Tool/Special . | . . . . . . . . . Unused Backups 57 | . 5 1 3 . 10 . 4 34 Power 4 | . . . . . 4 . . . Propulsion 11 | . 4 . . . 2 . . 5 Utility 19 | . . 1 1 . 4 . 2 11 Weapon 21 | . 1 . . . . . 2 18 Tool/Special 2 | . . . 2 . . . . . Average Slot Usage (%) 92 | . 100 91 95 99 91 88 90 84 Engine 8 | . 14 13 10 11 8 11 7 2 Treads 22 | . 28 21 15 22 21 22 26 21 Device 13 | . 14 8 13 22 16 11 6 4 Storage 10 | . 14 14 11 11 11 11 9 7 Processor 2 | . . . . . . . 8 10 Protection 9 | . . 1 15 10 11 11 6 7 Energy Gun 2 | . 1 . . . . . 4 12 Ballistic Gun 16 | . 25 22 21 21 18 22 1 8 Ballistic Cannon 2 | . . . . . . . 17 . Launcher 1 | . . 5 . . 2 . . . Peak Build Rating 102 | 7 10 10 18 19 31 32 45 102 Average Rating 28 | 5 9 8 14 17 22 31 39 66 On Entrance 17 | . 7 10 9 16 19 31 31 37 Naked Turns . | . . . . . . . . . Heaviest Build 134 | 13 30 30 59 101 110 109 117 134 Greatest Support 150 | 40 40 40 40 43 43 40 60 150 Greatest Overweight (x) 6 | . . 1 5 2 2 2 4 6 Average Overweight (x) 1 | . . . 1 1 1 2 1 . Largest Inventory Capacity 25 | 8 15 15 20 25 25 25 25 25 Average Capacity 22 | 7 13 15 18 21 23 25 25 25 Most Carried 25 | 8 13 15 20 24 25 25 25 25 Average Carried 20 | 5 10 13 16 21 21 24 24 24 Final Capacity 25 | 8 15 15 20 25 25 25 25 25 Final Carried 25 | 7 13 10 20 24 25 23 25 24 Class Distribution -------------------- 66% | Mutant 9% | Scavenger-Tank 9% | Scavenger-Gunner 5% | Scavenger-Mutant 4% | Gunner 3% | Tank Dominant Class ---------------- Mutant | -10/Materials Mutant | -10/Mines Mutant | -9/Materials Mutant | -9/Mines Mutant | -9/Exiles Mutant | -8/Mines Scavenger-Gunner | -8/Materials Scavenger-Tank | -7/Factory Resources | -11 -10 -10 -9 -9 -9 -8 -8 -7 ----------- Run | Yrd Mat Min Mat Min Exi Min Mat Fac Matter Collected 6622 | 212 355 208 764 290 1569 197 1404 1623 Remotely . | . . . . . . . . . Salvage Created 5494 | 52 439 107 1101 101 520 156 845 2173 Parts 375 | 2 33 11 62 15 56 7 67 122 Haulers Intercepted 10 | . . . 4 . . . 3 3 Recyclers Shooed 4 | 1 . . . . . . . 3 Parts Field Recycled . | . . . . . . . . . Retrieved Matter . | . . . . . . . . . Parts Self-Destructed . | . . . . . . . . . Prevented . | . . . . . . . . . Kills | -11 -10 -10 -9 -9 -9 -8 -8 -7 ------- Run | Yrd Mat Min Mat Min Exi Min Mat Fac Combat Hostiles Destroyed 121 | . 15 19 23 10 3 2 23 26 Melee 2 | . . . . . . . 2 . Guns 60 | . 12 6 18 5 1 2 . 16 Cannons 19 | . . . . . . . 16 3 AOE 39 | . 3 13 5 5 2 . 5 6 Classes Destroyed 20 | 1 5 1 3 . 2 . 3 5 Worker 17 | . 2 . 1 . . 2 6 6 Builder 13 | . . . . . . . 7 6 Tunneler 3 | 2 . . . . . . 1 . Hauler 10 | . . . 4 . . . 3 3 Recycler 10 | . . . 1 . . . 1 8 Mechanic 1 | . . . . . . . . 1 Operator 1 | . . . . . . . 1 . Turret 1 | . . . . . 1 . . . Watcher 12 | . 1 . 3 . . . 4 4 Swarmer 44 | . 6 9 6 10 . . 9 4 Grunt 39 | . 8 1 9 . . 1 9 11 Duelist 2 | . . . . . . . . 2 Protector 1 | . . . . . . . . 1 Sentry 12 | . . . 8 . . . 4 . Specialist 2 | . . . . . . . . 2 Hunter 3 | . . . . . . . 1 2 Programmer 4 | . . . . . . . . 4 Subdweller 1 | . 1 . . . . . . . Zionite 8 | . . . . . 8 . . . Assembled 11 | . . 9 . . 2 . . . Best Kill Streak 14 | 2 4 10 8 6 4 2 14 9 Combat Bots Only 10 | . 3 10 7 6 2 2 7 6 Max Kills in Single Turn 6 | 1 4 6 4 3 1 1 5 3 Gunslinging 1 | . . 1 1 . . . . 1 Exploded 6 | . 3 6 3 3 1 . 2 1 Melee 1 | . . . . . . . 1 . Uniques/NPCs Destroyed 5 | . . . . . 4 1 . . 8R-AWN (-9/Exiles) EX-HEX (-9/Exiles) EX-DEC (-9/Exiles) EX-BIN (-9/Exiles) AD-0RF (-8/Mines) Combat | -11 -10 -10 -9 -9 -9 -8 -8 -7 -------- Run | Yrd Mat Min Mat Min Exi Min Mat Fac Hostile Shots Fired 1004 | . 30 39 124 75 100 81 271 284 Missed 237 | . 8 12 36 19 13 9 73 67 Hits 767 | . 22 27 88 56 87 72 198 217 Melee 2 | . . . . . . . . 2 Projectile 765 | . 22 27 88 56 87 72 198 215 AOE 5 | . . 3 . . . . . 2 Critical Strikes 70 | . . . 5 1 49 . 7 8 Part Disruptions 6 | . . . . . . 5 . 1 Damage Taken 11185 | . 273 438 1089 345 1416 936 2531 4157 Core 1458 | . 37 91 94 9 186 51 276 714 Absorbed by Shields 327 | . . . 38 147 142 . . . Reduced by Siege Mode 164 | . . . . . . . . 164 Redirected to Shielding 22 | . . . 22 . . . . . Ignored by Resistances 158 | . . . . . . . . 158 Core Remaining (%) 53 | 100 . 48 . . . 15 49 . Volleys Fired 512 | 3 27 15 86 16 138 27 75 125 Largest 3 | 2 2 2 2 2 2 2 3 3 Hottest 168 | 70 46 53 46 43 120 43 168 168 Shots Fired 1012 | 6 53 24 150 27 248 54 213 237 Gun 737 | 6 52 16 146 24 235 54 9 195 Cannon 236 | . . . . . 8 . 198 30 Launcher 39 | . 1 8 4 3 5 . 6 12 Special . | . . . . . . . . . Kinetic 910 | 3 52 16 146 24 235 54 198 182 Thermal 63 | 3 . . . . 8 . 9 43 Explosive 39 | . 1 8 4 3 5 . 6 12 Electromagnetic . | . . . . . . . . . Robot Hit Streak 22 | 3 6 3 10 7 17 5 9 22 Robot Miss Streak 11 | 1 6 6 7 5 3 5 11 5 Penetration Max 2 | . . . . . . . 1 2 Secondary Targets 13 | . 2 1 4 1 . . . 5 Max Gunslinging Chain 1 | . 1 1 1 1 . . . 1 Shots Hit Robots 592 | 3 38 12 109 16 168 29 74 143 Core Hits 306 | 3 30 25 55 9 44 8 52 80 Critical Kills 7 | . . 1 . . . . . 6 Critical Parts Destroyed 10 | . . . 1 . . . . 9 Critical Strikes 40 | . . 1 1 . . . 14 24 Burn 4 | . . . . . . . . 4 Destroy 18 | . . 1 1 . . . . 16 Blast 18 | . . . . . . . 14 4 Melee Attacks 1 | . 1 . . . . . . . Impact 1 | . 1 . . . . . . . Slashing . | . . . . . . . . . Piercing . | . . . . . . . . . Sneak Attacks . | . . . . . . . . . Combat Hostiles . | . . . . . . . . . Follow-up Attacks . | . . . . . . . . . Damage Inflicted 16170 | 37 696 529 1974 462 2681 401 3529 5861 Guns 8902 | 37 555 84 1594 201 2255 401 86 3689 Cannons 3310 | . . . . . 272 . 2322 716 Explosions 3943 | . 141 445 380 261 154 . 1106 1456 Melee . | . . . . . . . . . Ramming 15 | . . . . . . . 15 . Kinetic 11388 | . 555 84 1594 201 2255 401 2322 3976 Thermal 824 | 37 . . . . 272 . 86 429 Explosive 3943 | . 141 445 380 261 154 . 1106 1456 Electromagnetic . | . . . . . . . . . Impact . | . . . . . . . . . Slashing . | . . . . . . . . . Piercing . | . . . . . . . . . Highest Corruption 6 | . . . . . . . . 6 Average Corruption 3 | . . . . . . . . 3 Corruption Purged 3 | . . . . . . . . 3 Corruption Blocked . | . . . . . . . . . Effects 8 | . . . . . . . . 8 Message Errors 4 | . . . . . . . . 4 Matter Fused 2 | . . . . . . . . 2 Data Loss (minor) 1 | . . . . . . . . 1 Data Loss (major) 1 | . . . . . . . . 1 Overload Shots . | . . . . . . . . . Overflow Damage 250 | . 4 28 12 15 4 . 163 24 Projectiles 108 | . . . . . . . 107 1 Explosions 142 | . 4 28 12 15 4 . 56 23 Melee . | . . . . . . . . . Knockbacks 32 | . . . . . . . 27 5 Impact 1 | . . . . . . . 1 . Kinetic 29 | . . . . . . . 24 5 Secondary 2 | . . . . . . . 2 . Self-Inflicted Damage 233 | . . 24 18 . 46 . 116 29 Shots 8 | . . 2 1 . 1 . 3 1 Rammed 1 | . . . . . . . 1 . Targets Rammed 3 | . . . . . . . 3 . Kicked . | . . . . . . . . . Crushed 2 | . . . . . . . 2 . Highest Temperature 518 | 18 4 9 19 . 336 419 180 518 Average Temperature 95 | 9 1 5 7 . 130 242 38 103 Received Heat Transfer 3689 | . 84 18 464 . . 1440 1017 666 Effects 4 | . . . . . . . . 4 Shutdowns 2 | . . . . . . . . 2 Interference 2 | . . . . . . . . 2 Siege Activations 3 | . . . . . . . . 3 Total Turns 57 | . . . . . . . . 57 Longest Duration 32 | . . . . . . . . 32 Martial Activations . | . . . . . . . . . Shielding Activations . | . . . . . . . . . Robots Disrupted . | . . . . . . . . . Combat Hostiles . | . . . . . . . . . Robots Corrupted . | . . . . . . . . . Combat Hostiles . | . . . . . . . . . Parts Fried . | . . . . . . . . . Impact Corruptions 1 | . . . . . . . 1 . Robots Melted 1 | . . . . . . . . 1 Combat Hostiles 1 | . . . . . . . . 1 Parts Melted 5 | . . . . . . . . 5 Heat Transferred 2083 | 111 . . . . 640 . 185 1147 Parts Sabotaged . | . . . . . . . . . Parts Stolen . | . . . . . . . . . Parts Stripped . | . . . . . . . . . Power Chain Reactions . | . . . . . . . . . Alert | -11 -10 -10 -9 -9 -9 -8 -8 -7 ------- Run | Yrd Mat Min Mat Min Exi Min Mat Fac Maximum Alert Level 3 | . 1 . 1 1 . . 1 3 Low Security (%) 79 | 100 91 100 84 99 . 100 70 53 Level 1 12 | . 8 . 15 . . . 29 13 Level 2 4 | . . . . . . . . 21 Level 3 2 | . . . . . . . . 12 Level 4 . | . . . . . . . . . Level 5 . | . . . . . . . . . High Security . | . . . . . . . . . Max Security . | . . . . . . . . . Peak Influence 877 | 5 227 174 241 205 . 20 399 877 Initial 147 | . . 74 45 61 . . . 147 Average 141 | . 116 118 160 35 . 1 134 269 Influence Increases 4008 | 10 523 288 702 263 . 30 924 1268 Destroy 0b10 Robot/C 2280 | . 280 200 460 200 . 20 460 660 Destroy 0b10 Robot/NC 345 | 10 15 . 45 . . 10 115 150 Destroy Leader 526 | . 52 40 144 30 . . 114 146 Allied During Kill 33 | . . . . . . . . 33 Successful Hack 96 | . 56 . 19 . . . 5 16 Select Force Hacks 60 | . 60 . . . . . . . Disable Machine 225 | . 30 . 15 15 . . 60 105 Destroy Structure 383 | . . 33 19 18 . . 155 158 Lose Combat Pursuer 60 | . 30 15 . . . . 15 . Influence Decreases 3170 | 10 332 361 661 422 . 30 598 756 Entered New Map 467 | . . 117 73 98 . . . 179 Time Decay 2322 | 10 332 214 518 324 . 30 488 406 Lost Part 351 | . . 30 70 . . . 110 141 Lost Ally 30 | . . . . . . . . 30 Squads Dispatched 24 | . 3 . 3 . . . 4 14 Investigation 7 | . 3 . 2 . . . 1 1 Extermination 2 | . . . . . . . . 2 Reinforcement 12 | . . . 1 . . . 3 8 Assault 3 | . . . . . . . . 3 Garrison . | . . . . . . . . . Intercept . | . . . . . . . . . Searches Triggered . | . . . . . . . . . Construction Impeded 5 | . . . . . . . 2 3 Haulers Reinforced 1 | . . . . . . . . 1 Active Scanning Responses . | . . . . . . . . . Cargo Convoy Interrupts 1 | . . . . . . . . 1 Stealth | -11 -10 -10 -9 -9 -9 -8 -8 -7 --------- Run | Yrd Mat Min Mat Min Exi Min Mat Fac Distress Signals 8 | . . . 3 . . . 1 4 Communications Jammed . | . . . . . . . . . Distress Signals . | . . . . . . . . . Times Spotted 198 | . 19 31 33 11 14 2 36 52 Peak Tracking Total 22 | . 3 22 9 5 10 2 8 9 Tactical Retreats 4 | . 1 1 . . 1 . 1 . Traps | -11 -10 -10 -9 -9 -9 -8 -8 -7 ------- Run | Yrd Mat Min Mat Min Exi Min Mat Fac Traps Triggered 9 | . 2 . 2 1 . . 1 3 Indirectly . | . . . . . . . . . Trap Hack Attempts . | . . . . . . . . . Triggered . | . . . . . . . . . Disarmed . | . . . . . . . . . Reprogrammed . | . . . . . . . . . Reused . | . . . . . . . . . Traps Extracted . | . . . . . . . . . Installed . | . . . . . . . . . Triggered . | . . . . . . . . . Machines | -11 -10 -10 -9 -9 -9 -8 -8 -7 ---------- Run | Yrd Mat Min Mat Min Exi Min Mat Fac Machines Disabled 20 | . 2 . 1 1 5 . 4 7 Max in Single Turn 2 | . 1 . 1 1 1 . 1 2 Garrison Access 1 | . . . . . . . 1 . Machines Repaired . | . . . . . . . . . Machines Dismantled . | . . . . . . . . . Machines Sabotaged . | . . . . . . . . . Overloaded Fab Kills . | . . . . . . . . . Hacking | -11 -10 -10 -9 -9 -9 -8 -8 -7 --------- Run | Yrd Mat Min Mat Min Exi Min Mat Fac Machines Accessed 27 | . 8 . 6 1 1 . 5 6 Terminals 17 | . 6 . 5 . . . 3 3 Fabricators 1 | . . . . . . . . 1 Repair Stations . | . . . . . . . . . Recycling Units 6 | . 2 . 1 . . . 1 2 Scanalyzers . | . . . . . . . . . Garrison Access 1 | . . . . . . . 1 . Total Hacks 62 | . 22 . 17 1 1 . 10 11 Successful 32 | . 13 . 7 1 1 . 6 4 Failed 30 | . 9 . 10 . . . 4 7 Catastrophic 6 | . 1 . 2 . . . 2 1 Database Lockouts . | . . . . . . . . . Manual 38 | . 21 . 11 . 1 . 4 1 Terminals 43 | . 19 . 14 . . . 5 5 Fabricators 1 | . . . . . . . . 1 Repair Stations . | . . . . . . . . . Recycling Units 14 | . 3 . 3 . . . 3 5 Scanalyzers . | . . . . . . . . . Garrison Access 2 | . . . . . . . 2 . Terminal Hacks 4 | . . . . 1 1 . 1 1 Open Door 1 | . . . . 1 . . . . Branch Access Points 1 | . . . . . . . . 1 Emergency Access Points 1 | . . . . . . . 1 . Proto ID Catalog 1 | . . . . . 1 . . . Fabricator Hacks 1 | . . . . . . . . 1 Network Status 1 | . . . . . . . . 1 Repair Station Hacks . | . . . . . . . . . Recycling Unit Hacks 7 | . 1 . 1 . . . 3 2 Process 1 | . . . . . . . 1 . Retrieve Matter 1 | . . . . . . . 1 . Retrieve Components 5 | . 1 . 1 . . . 1 2 Scanalyzer . | . . . . . . . . . Garrison Access Hacks 1 | . . . . . . . 1 . Seal Access 1 | . . . . . . . 1 . Unauthorized Hacks 19 | . 12 . 6 . . . 1 . Terminals 17 | . 10 . 6 . . . 1 . Botnet 8 | . 4 . 3 . . . 1 . Skim 9 | . 6 . 3 . . . . . Fabricators . | . . . . . . . . . Repair Stations . | . . . . . . . . . Recycling Units 2 | . 2 . . . . . . . Tunnel 2 | . 2 . . . . . . . Scanalyzers . | . . . . . . . . . Garrison Access . | . . . . . . . . . Data Cores Recovered . | . . . . . . . . . Used . | . . . . . . . . . Hacking Detections 19 | . 4 . 6 . . . 4 5 Full Trace Events 2 | . 1 . . . . . . 1 Feedback Events . | . . . . . . . . . Feedback Blocked . | . . . . . . . . . Robot Schematics Acquired . | . . . . . . . . . Robots Built . | . . . . . . . . . Authchips . | . . . . . . . . . Time . | . . . . . . . . . Total Robot Build Rating . | . . . . . . . . . Part Schematics Acquired . | . . . . . . . . . Parts Built . | . . . . . . . . . Authchips . | . . . . . . . . . Time . | . . . . . . . . . Total Part Build Rating . | . . . . . . . . . Parts Repaired . | . . . . . . . . . Time . | . . . . . . . . . Parts Recycled . | . . . . . . . . . Recycled Matter 143 | . . . . . . . 143 . Retrieved Matter 300 | . . . . . . . 300 . Retrieved Components 22 | . 9 . . . . . 2 11 Parts Scanalyzed . | . . . . . . . . . Part Schematics Acquired . | . . . . . . . . . Parts Damaged . | . . . . . . . . . Bothacking | -11 -10 -10 -9 -9 -9 -8 -8 -7 ------------ Run | Yrd Mat Min Mat Min Exi Min Mat Fac Used RIF Installer . | . . . . . . . . . Robots Hacked . | . . . . . . . . . Non-combat . | . . . . . . . . . Combat . | . . . . . . . . . Robot Hacks Applied . | . . . . . . . . . Relay Couplers Released . | . . . . . . . . . Fabnet Peak Effective % . | . . . . . . . . . Robots Rewired . | . . . . . . . . . Allies Hacked . | . . . . . . . . . Hacks Repelled . | . . . . . . . . . Allies | -11 -10 -10 -9 -9 -9 -8 -8 -7 -------- Run | Yrd Mat Min Mat Min Exi Min Mat Fac Total Allies 2 | . . . . 2 . . . . Largest Group 2 | . . . . 2 1 . . . Highest-Rated Group 48 | . . . . 48 31 . . . Highest-Rated Ally 31 | . . . . 31 31 . . . Total Orders 1 | . . . . . . . . 1 EXPLORE 1 | . . . . . . . . 1 Ally Attacks 25 | . . . . . . . . 25 Total Damage 1371 | . . . . . . . . 1371 Kills 9 | . . . . . . . . 9 Allies Corrupted . | . . . . . . . . . Allies Melted . | . . . . . . . . . Turrets Deployed 1 | . . . . . . . . 1 Intel | -11 -10 -10 -9 -9 -9 -8 -8 -7 ------- Run | Yrd Mat Min Mat Min Exi Min Mat Fac Active Infowar (turns) 1366 | 14 1020 262 . . . . 70 . Seismic 1296 | 14 1020 262 . . . . . . ECM 70 | . . . . . . . 70 . Robot Analysis Total . | . . . . . . . . . Derelict Logs Recovered 2 | . . . . 2 . . . . Drone Launches 1 | . . . . . . . . 1 Drone Recoveries . | . . . . . . . . . Exploration | -11 -10 -10 -9 -9 -9 -8 -8 -7 ------------- Run | Yrd Mat Min Mat Min Exi Min Mat Fac Turns Passed 13055 | 121 1020 455 1431 1716 4183 248 1913 1968 Spaces Moved 4734 | 69 551 240 642 624 1215 47 645 701 Core 17 | 17 . . . . . . . . Treads 4320 | 52 551 187 316 624 1215 47 645 683 Legs 18 | . . . . . . . . 18 Wheels 379 | . . 53 326 . . . . . Hover . | . . . . . . . . . Flight . | . . . . . . . . . Fastest Speed 50 | 50 160 95 95 240 240 320 240 160 Average Speed 230 | 132 160 159 174 263 300 320 242 206 Slowest Speed 550 | 160 160 240 320 320 320 320 480 550 Overloaded Moves . | . . . . . . . . . Propulsion Burnouts . | . . . . . . . . . Robots Hopped . | . . . . . . . . . Potential Cave-ins . | . . . . . . . . . Cave-ins Triggered . | . . . . . . . . . Exploration Rate (%) 53 | 4 90 68 64 88 89 11 37 32 Regions Visited 8 Branch Regions 4 Pre-discovered Areas 5 | . 4 . . 1 . . . . Known Exits Taken . | . . . . . . . . . Unknown Exits Taken 8 | 1 1 1 1 1 1 1 1 . Scrap Searched 2 | . . 1 . 1 . . . . Spaces Dug 3 | . . . . . . . 3 . Terrain Destroyed 481 | . . 43 21 18 32 . 201 166 Melee . | . . . . . . . . . Projectile 257 | . . . . . . . 151 106 AOE 224 | . . 43 21 18 32 . 50 60 Terrain Rammed . | . . . . . . . . . Walls Destroyed . | . . . . . . . . . Machines Disabled . | . . . . . . . . . Actions | -11 -10 -10 -9 -9 -9 -8 -8 -7 --------- Run | Yrd Mat Min Mat Min Exi Min Mat Fac Total 5964 | 92 636 286 810 674 1505 91 836 1034 Wait 268 | . 32 20 3 12 66 13 24 98 Move 4725 | 68 550 239 641 622 1214 46 644 701 Hop . | . . . . . . . . . Pick Up 166 | 14 11 3 33 6 37 . 27 35 Fast Attach 27 | . 1 . 3 . 1 . 6 16 Attach 65 | 7 . 3 14 1 10 1 15 14 Detach 7 | . . . 2 . . . 4 1 Swap 63 | . 6 3 10 11 11 3 14 5 Drop 127 | . 8 3 18 6 28 1 24 39 Fire 512 | 3 27 15 86 16 138 27 75 125 Melee 1 | . 1 . . . . . . . Ram . | . . . . . . . . . Kick . | . . . . . . . . . Crush 3 | . . . . . . . 3 . Escape Stasis . | . . . . . . . . . Rewire . | . . . . . . . . . Trap . | . . . . . . . . . Miscellaneous . | . . . . . . . . . Route ------- -11/Scrapyard -10/Materials (discovered 3 exits: *Mat x2 / [*Min]) -10/Mines (discovered 2 exits: *Mat x2) -9/Materials (discovered 3 exits: *Mat / *Min x2) -9/Mines (discovered 3 exits: *Mat x2 / *Exi) -9/Exiles -8/Mines (discovered 2 exits: *Mat x2) -8/Materials -7/Factory (discovered 4 exits: *Sto x2 / *Low x2) History --------- Turn | Location | Event 8 | -11/Scrapyard | Discovered new exit (range 15) 122 | -11/Scrapyard | Entered Materials 301 | -10/Materials | Build established: Mutant 413 | -10/Materials | Discovered new exit (range 9) 712 | -10/Materials | Discovered new exit (range 13) 722 | -10/Materials | Derelicts attacked the area 1054 | -10/Materials | Learned location of Recycling (-7) 1075 | -10/Materials | Learned location of Mines (-9) 1088 | -10/Materials | Learned Storage emergency access door positions 1091 | -10/Materials | Learned 4 Recycling zone layouts 1093 | -10/Materials | Loaded intel: 2 trap records 1105 | -10/Materials | Learned location of 1 exit from Recycling 1107 | -10/Materials | Discovered new exit (range 8) 1142 | -10/Materials | Entered Mines 1381 | -10/Mines | Assembled infested the area 1441 | -10/Mines | Destroyed 10 combat bots 1478 | -10/Mines | Discovered new exit (range 13) 1541 | -10/Mines | Core integrity fell below 50% 1570 | -10/Mines | Discovered new exit (range 15) 1591 | -10/Mines | Found DCF Scrap (15 items) 1597 | -10/Mines | Entered Materials 1597 | -9/Materials | Evolved 2 slots: Utility x2 1678 | -9/Materials | Discovered new exit (range 6) 1740 | -9/Materials | Destroyed 7 combat bots 1911 | -9/Materials | Discovered new exit (range 5) 2314 | -9/Materials | Discovered new exit (range 7) 2423 | -9/Materials | Lost 4 parts (1p1n1u1w) 3028 | -9/Materials | Entered Mines 3302 | -9/Mines | A weapon hastily lodged in a ceiling crevice suddenly fell to the ground 3383 | -9/Mines | Build established: Scavenger-Mutant 3480 | -9/Mines | Found DCF Scrap (14 items) 3650 | -9/Mines | Discovered new exit (range 5) 3718 | -9/Mines | Learned location of 1 exit from Lower Caves 3763 | -9/Mines | Deemed a non-threat by the Exiles lab entrance 3792 | -9/Mines | Build established: Mutant 4109 | -9/Mines | Discovered new exit (range 7) 4121 | -9/Mines | Learned location of Zion (-6) 4131 | -9/Mines | Met a Derelict who couldn't figure out how to use a Trap Extractor 4724 | -9/Mines | Discovered new exit (range 5) 4744 | -9/Mines | Entered Exiles 4744 | -9/Exiles | Accompanied by 1 ally 4774 | -9/Exiles | Led the pair of lost Derelicts to a safe place 4821 | -9/Exiles | Met 8R-AWN 4946 | -9/Exiles | Met EX-HEX 5090 | -9/Exiles | Met EX-DEC 5499 | -9/Exiles | Visited The Gauntlet 5846 | -9/Exiles | Met EX-BIN 5885 | -9/Exiles | Aligned with FarCom system 5888 | -9/Exiles | Given EX-Vault access code 5962 | -9/Exiles | Opened EX-Vault 5978 | -9/Exiles | Found Gui. Plasma Cannon 5988 | -9/Exiles | Found Superbattery 6008 | -9/Exiles | Found Supersonic Drone Bay 6077 | -9/Exiles | Warned to stay clear of 0b10 Research branches 7067 | -9/Exiles | Attacked by the Exiles 7258 | -9/Exiles | Core integrity fell below 50% 7307 | -9/Exiles | Destroyed 8R-AWN 7317 | -9/Exiles | Found Prototype Ballistic Gun 7326 | -9/Exiles | Lost 10 parts (1p2n4u3w) 7680 | -9/Exiles | Destroyed EX-HEX 7798 | -9/Exiles | Destroyed EX-DEC 7841 | -9/Exiles | Destroyed EX-BIN 8522 | -9/Exiles | Found Deploy-a-Sentry 8882 | -9/Exiles | Discovered new exit (range 14) 8927 | -9/Exiles | Stole four prototypes: Superbattery, Supersonic Drone Bay, Gui. Plasma Cannon, Deploy-a-Sentry 8927 | -9/Exiles | Entered Mines 8966 | -8/Mines | Discovered new exit (range 10) 9015 | -8/Mines | AD-0RF came to Exiles' defense 9091 | -8/Mines | Core integrity fell below 20% 9096 | -8/Mines | Destroyed AD-0RF 9137 | -8/Mines | Discovered new exit (range 5) 9175 | -8/Mines | Entered Materials 9175 | -8/Materials | Evolved 2 slots: Propulsion x1, Weapon x1 9177 | -8/Materials | Identified 8R-AWN's Boregun 9676 | -8/Materials | Build established: Scavenger-Gunner 9843 | -8/Materials | Discovered new exit (range 16) 10590 | -8/Materials | Core integrity fell below 50% 10614 | -8/Materials | Lost 11 parts (1p3n4u3w) 10621 | -8/Materials | Destroyed 7 combat bots 11047 | -8/Materials | Build established: Gunner 11088 | -8/Materials | Entered Factory 11088 | -7/Factory | Evolved 2 slots: Propulsion x1, Utility x1 11554 | -7/Factory | Build established: Tank 12009 | -7/Factory | Build established: Scavenger-Tank 12118 | -7/Factory | Cargo convoy interrupted 12123 | -7/Factory | DAS Turret deployed 12174 | -7/Factory | Lost 3 parts (3u) 12279 | -7/Factory | Found Prototype Launcher 12280 | -7/Factory | Identified Mni. Smartbomb Launcher 12408 | -7/Factory | Found Mni. Smartbomb Launcher 12419 | -7/Factory | Discovered new exit (range 52) 12421 | -7/Factory | Discovered new exit (range 100) 12425 | -7/Factory | Discovered new exit (range 121) 12433 | -7/Factory | Found Mni. Smartbomb Launcher 12436 | -7/Factory | Found Mni. Smartbomb Launcher 12688 | -7/Factory | First assault squad dispatched 13032 | -7/Factory | Identified exit to Storage 13032 | -7/Factory | Identified exit to Lower Caves 13050 | -7/Factory | Core integrity fell below 50% 13053 | -7/Factory | Core integrity fell below 20% 13056 | -7/Factory | Destroyed by H-61 Shepherd with Heavy Assault Cannon Last Messages --------------- dispatching reinforcements to area. 13040_ Imp. Heavy Treads destroyed. 13044_ Terminal disabled. 13045_ X-67 Chaingunner destroyed. 13045_ Switching to secondary target: H-61 Shepherd. 13045_ Slug penetrates Wall. 13045_ Slug penetrates H-61 Shepherd. 13045_ Enh. Coil Gun destroyed. 13045_ Knocked back. 13047_ Enh. Coil Gun destroyed. 13047_ Lgt. Neutrino Core destroyed. 13047_ Knocked back. 13049_ Enh. Coil Gun destroyed. 13049_ Knocked back. 13052_ Nuclear Reactor explodes. 13052_ Imp. System Guard destroyed. 13055_ The unstable cave ceiling collapses. 13055_ Mni. Smartbomb Launcher destroyed. 13056_ The unstable cave ceiling collapses. Map ----- +----------------------------------------------------+ | ### + !#### ############+## #?????# | | # # ## [[! #??????????# #?????# [ | | + # """ =## [[! #??????????# #?????# | | # # """ ## [!! #??????????# #?????# | | # # """ ## #??????????# #?????# > | | !# # ## #??????????# #?????# | | #### ""#+##### #??????????# #?????# | | #### + #??????????# T?????# | | # ### #??????????# ?????# | | # #?# #??????????# #?????## | | #!% #?# #??????????# ######## | | + #?# #??#???????# | | "" # #?# "" ##? ???????# | | "" ## #?# S"" !# # #??????# | | "" ## #?# "" ##;;####???# | | ## #######+#; ##??# | | ##### #### | | ????# > | | ????# # #######+##+######### | | ????# ######## Hx #???? | | ##### #?????### """ #???? | | #?????# " / """"" """ #???? | | ##### #????## " """"" R" #???? | | #??# ###### = """ """ #??? | | #??# "" ##??? | | #??############## @ """"" #???? | | #???????????????# % """"" #???? | | #???????????????# % """ #???? | | #???????????????# ] #???? | | ##???????????????# # ################???? | | ?????????????????### ?????????????????? | | ???????????????????## ! = ????????????????? | | ????????????????????## ## ???????????????? | | ?????????????????????##?# ""Y"" "??????????????? | | ????????????????????????? """"" ""?????????????? | | ????????????????????????? ?????????????? | | ?????????????????????????##??????#+#?????????????? | | ?????????????????????????????????????????????????? | | ?????????????????????????????????????????????????? | | ?????????????????????????????????????????????????? | | ?????????????????????????????????????????????????? | | ?????????????????????????????????????????????????? | | ?????????????????????????????????????????????????? | | ?????????????????????????????????????????????????? | | ?????????????????????????????????????????????????? | | ?????????????????????????????????????????????????? | | ?????????????????????????????????????????????????? | | ?????????????????????????????????????????????????? | | ?????????????????????????????????????????????????? | | ?????????????????????????????????????????????????? | +----------------------------------------------------+ Best States ------------- Heat Dissipation 50 Energy Generation 19 Energy Capacity 310 Matter Stores 300 Matter Capacity 300 Sight Range 16 Terrain Scan Density 10 ECM Strength 2 Corruption Containment 12 Armor Coverage 600 Resistance: KI 30 Resistance: EM 15 Core Shielding 20 Evasion (%) 50 Armor Integrity Analysis 40 Recoil Reduction 4 Item Schematics ----------------- None Robot Schematics ------------------ None Fabricated ------------ Nothing Repaired ---------- Nothing Alien Tech Used ----------------- None Achievements -------------- None Challenges ------------ None Game ------ Seed DiametricLightningBroadsword Manual? 0 Play Time 01:23:46 Cumulative 323.2 hours Start 2025.09.24 @ 17:11:03 End 2025.09.24 @ 19:06:18 Sessions 1 Manual Loads 0 Difficulty Rogue Special Mode None Game No. 438 Rogue 438 Adventurer 0 Explorer 0 Win Type - Total 10 Types 5/0/1/2/1/0/1/0/0/0 Lore% 86 Gallery% 82 Achievement% 67 Wizard Run 0 Options --------- Layout 1 ASCII 0 Keyboard 0 Movement Mouse Keybinds 0 Fullscreen 1 Font 24/Smallcaps Map View 50x40 Zoom Use 0% Tactical HUD 1 Map Filters NONE Filters NONE Steam 1 RUN: 537056fa-0c7b-4178-911f-2f1903b80710